﻿Department family,Entity,Date,Expense type,Expense area,Supplier,Transaction number,Amount,Description,Supplier Postcode
Balance Sheet,L2 Current Assets,06/04/2023,Finished Processed Goods,Stock & Work In Progress,Alliance Healthcare Distribution Ltd,F33954746,"40,878.29 ",Pharmaceutical Purchase,KT9 1SN
Balance Sheet,L2 Current Assets,14/04/2023,Finished Processed Goods,Stock & Work In Progress,Alliance Healthcare Distribution Ltd,F33H52179,"40,475.88 ",Pharmaceutical Purchase,KT9 1SN
Balance Sheet,L2 Current Assets,21/04/2023,Finished Processed Goods,Stock & Work In Progress,Alliance Healthcare Distribution Ltd,F33M51562,"40,475.88 ",Pharmaceutical Purchase,KT9 1SN
Balance Sheet,L2 Current Assets,26/04/2023,Finished Processed Goods,Stock & Work In Progress,Alliance Healthcare Distribution Ltd,F33S56469,"41,350.25 ",Pharmaceutical Purchase,KT9 1SN
Balance Sheet,L2 Current Assets,26/04/2023,Finished Processed Goods,Stock & Work In Progress,Alliance Healthcare Distribution Ltd,F33S56469,"41,350.25 ",Pharmaceutical Purchase,KT9 1SN
Balance Sheet,L2 Current Assets,06/04/2023,Finished Processed Goods,Stock & Work In Progress,Alloga Uk Ltd,SIN103732177,"25,702.13 ",Pharmaceutical Purchase,DE55 2FH
Balance Sheet,L2 Current Assets,19/04/2023,Finished Processed Goods,Stock & Work In Progress,Alloga Uk Ltd,SIN103741968,"27,000.00 ",Pharmaceutical Purchase,DE55 2FH
Balance Sheet,L2 Current Assets,26/04/2023,Finished Processed Goods,Stock & Work In Progress,Alloga Uk Ltd,SIN103752016,"36,000.00 ",Pharmaceutical Purchase,DE55 2FH
CHS Estates,L2 Estates,14/04/2023,Contract : Other External,Medical Physics,B Braun Sterilog (Yorkshire) Ltd,328746930,"168,705.97 ",Decontamination Services for Surgical & Podiatry,S35 2PW
Balance Sheet,L2 Current Assets,12/04/2023,Finished Processed Goods,Stock & Work In Progress,Bayer Plc,824C479017,"27,373.68 ",Pharmaceutical Purchase,RG2 6AD
Balance Sheet,L2 Current Assets,21/04/2023,Finished Processed Goods,Stock & Work In Progress,Bayer Plc,824C482003,"27,373.68 ",Pharmaceutical Purchase,RG2 6AD
Balance Sheet,L2 Current Assets,21/04/2023,Finished Processed Goods,Stock & Work In Progress,Bayer Plc,824C482528,"114,057.00 ",Pharmaceutical Purchase,RG2 6AD
Balance Sheet,L2 Current Assets,26/04/2023,Finished Processed Goods,Stock & Work In Progress,Bayer Plc,824C483007,"27,373.68 ",Pharmaceutical Purchase,RG2 6AD
CHS Facilities,L2 Facilities,26/04/2023,Cleaning Equipment,Equipment Loan,BES Healthcare Limited,PFIBES290323,"121,578.50 ",AquaPhase AQ4102PTHT Washing Machine High Top pass through,BS3 2SZ
Recharges,Recharges,06/04/2023,Healthcare From Foundation Trusts,Recharges,Bradford Teaching Hospitals NHS Foundation Trust,323335,"118,442.59 ",Various services provided by agreement as per West Yorkshire Association of Acute Trusts agreed methodology,WF3 1WE
Balance Sheet,Fixed Assets,26/04/2023,Additions - Assets Under Construction,CAPITAL (Reconfig HRI),Brandon Medical Co Ltd,0000150576,"34,620.86 ",Supply and installation of 4 Atlas Pendants® - Ceiling Supply Systems,LS27 0EL
Surgery & Anaesthetics,Surgical Divisional Support,26/04/2023,Healthcare From Commercial Sector,Elective Recovery,Calderdale And Huddersfield Orthopaedic Partnership Llp,INV-0083,"34,169.06 ",Provision of Orthopaedic and Injection Services,LS8 2JH
Corporate Services,Service Performance,21/04/2023,Contract : Other External,Pfi,Calderdale Hospital Spc Ltd,CASI61,"3,048,766.66 ",PFI contract monthly payment,M20 2YY
Corporate Services,Service Performance,12/04/2023,External Contracts : Catering,Pfi,Calderdale Hospital Spc Ltd,CASI62,"53,491.86 ",Additional variations,M20 2YY
Corporate Services,Service Performance,14/04/2023,Minor Works,Pfi,Calderdale Hospital Spc Ltd,CASI66,"211,183.18 ",New Works Instructions,M20 2YY
Central & Technical,Tech Accounting,06/04/2023,CCG Income,Tech Accounting,Calderdale Metropolitan Borough Council,IN22186299,"26,000.00 ",CAPACITY FUND - CALDERDALE COUNCIL OVERTIME OF SOCIAL WORKERS TO ENABLE 7 DAY COVER,HX1 1TP
Central & Technical,Tech Accounting,06/04/2023,CCG Income,Tech Accounting,Calderdale Metropolitan Borough Council,IN22186301,"66,500.00 ",CAPACITY FUND - CALDERDALE COUNCIL ADDITIONAL OT STAFF,HX1 1TP
Central & Technical,Tech Accounting,06/04/2023,CCG Income,Tech Accounting,Calderdale Metropolitan Borough Council,IN2218631X,"25,000.00 ",UECB WINTER MONIES ALLOCATION - CALDERDALE COUNCIL - ENABLE OT POST TO ACCESS DIGITAL AND ASSISTIVE TECHNOLOGY TO PREVENT ADMISSIONS,HX1 1TP
Balance Sheet,Fixed Assets,26/04/2023,Additions - Assets Under Construction,Capital (His),Cisilion Ltd,INVUK0017745,"21,019.38 ",1000BASE-SX SFP transceiver module  MMF  850nm  DOM,KT22 9UT
Balance Sheet,Fixed Assets,26/04/2023,Additions - Assets Under Construction,Capital (His),Cisilion Ltd,INVUK0017745,"4,729.25 ",1000BASE-T SFP transceiver module for Category 5 copper wire,KT22 9UT
Balance Sheet,Fixed Assets,26/04/2023,Additions - Assets Under Construction,Capital (His),Cisilion Ltd,INVUK0017745,"2,091.45 ",1000BASE-LX/LH SFP transceiver module  MMF/SMF  1310nm  DOM,KT22 9UT
Balance Sheet,Fixed Assets,26/04/2023,Additions - Assets Under Construction,Capital (His),Cisilion Ltd,INVUK0017745,"21,495.50 ",10GBASE-SR SFP Module,KT22 9UT
Balance Sheet,Fixed Assets,26/04/2023,Additions - Assets Under Construction,Capital (His),Cisilion Ltd,INVUK0017745,"39,654.00 ",10GBASE-LR SFP+ module,KT22 9UT
Balance Sheet,Fixed Assets,26/04/2023,Additions - Assets Under Construction,Capital (His),Cisilion Ltd,INVUK0017745,"4,287.96 ",Catalyst 9300 8 x 10GE Network Module  spare,KT22 9UT
Balance Sheet,Fixed Assets,26/04/2023,Additions - Assets Under Construction,Capital (His),Cisilion Ltd,INVUK0017745,356.08 ,3M Type 1 Stacking Cable,KT22 9UT
Balance Sheet,Fixed Assets,26/04/2023,Additions - Assets Under Construction,Capital (His),Cisilion Ltd,INVUK0017745,539.60 ,Catalyst Stack Power Cable 30 CM Spare,KT22 9UT
Balance Sheet,Fixed Assets,26/04/2023,Additions - Assets Under Construction,Capital (His),Cisilion Ltd,INVUK0017745,221.20 ,Catalyst Stack Power Cable 150 CM Spare,KT22 9UT
Balance Sheet,Fixed Assets,26/04/2023,Additions - Assets Under Construction,Capital (His),Cisilion Ltd,INVUK0017745,14.32 ,LC-LC Multimode OM4 Duplex Fibre Lead Aqua 2m,KT22 9UT
Balance Sheet,Fixed Assets,26/04/2023,Additions - Assets Under Construction,Capital (His),Cisilion Ltd,INVUK0017745,20.72 ,LC-LC Multimode OM4 Duplex Fibre Lead Aqua 5m,KT22 9UT
Balance Sheet,Fixed Assets,26/04/2023,Additions - Assets Under Construction,Capital (His),Cisilion Ltd,INVUK0017745,"2,731.44 ",10GBASE-SR SFP Module Enterprise-Class,KT22 9UT
Health Informatics,Modernisation Programme,26/04/2023,Computer Software / License  Fees,Modernisation Programme,Cisilion Ltd,INVUK0017785,"67,245.55 ",ISE-P-LIC 36 x  £1 556.61  Cisco Identity Service Engine Premier Subscription x3500.,KT22 9UT
Balance Sheet,Fixed Assets,26/04/2023,Additions - Assets Under Construction,Capital (His),Cisilion Ltd,INVUK0017796,"47,576.96",Catalyst 9300 48-port UPOE  Network Advantage,KT22 9UT
Balance Sheet,Fixed Assets,26/04/2023,Additions - Assets Under Construction,Capital (His),Cisilion Ltd,INVUK0017796,"38,781.92",C9300 DNA Advantage  48-Port  7 Year Term License,KT22 9UT
Balance Sheet,Fixed Assets,06/04/2023,Additions - Assets Under Construction,Capital (Estates),Clifford Cooper & Sons Ltd,62455,"110,543.24 ",HRI - SUPPLY AND INSTALLATION OF A CONDENSATE RECOVERY SCHEME AS PER YOUR TENDER,CM20 9GY
CHS Facilities,L2 Facilities,12/04/2023,Telephone Installation and Maintenance,Equipment Loan,Creative Software Solutions (Europe) Limited,1104058,"28,242.00 ",Calderdale annual subscription  6/02/23 to 05/02/2024  - Opportunity Number 154,WS13 7AU
Balance Sheet,L2 Current Assets,06/04/2023,Finished Processed Goods,Stock & Work In Progress,Csl Behring Uk Ltd,994054517,"28,495.00 ",Pharmaceutical Purchase,RH16 1AH
Health Informatics,Service Delivery,26/04/2023,Computer Hardware Purchases,Service Delivery,Dell Corporation Ltd,7402896483,"59,700.00 ","Dell 27 Monitor - P2722H - 68.6cm (27"")",RG12 1LF
Health Informatics,Service Delivery,06/04/2023,Computer Hardware Purchases,Service Delivery,Dell Corporation Ltd,7402896851,"58,478.40 ","Latitude 5430 BTS Configuration. Dell Eco Pro Slim Briefcase 15 - PO1520CS - Fits most laptops up to15""",RG12 1LF
Health Informatics,Service Delivery,06/04/2023,Computer Hardware Purchases,Service Delivery,Dell Corporation Ltd,7402897125,"39,000.00 ",Dell Pro Webcam - WB5023,RG12 1LF
Health Informatics,Service Delivery,26/04/2023,Computer Hardware Purchases,Service Delivery,Dell Corporation Ltd,7402897216,"1,120.00","Dell Eco Pro Slim Briefcase 15 - PO1520CS - Fits most laptops up to 15""",RG12 1LF
Health Informatics,Service Delivery,26/04/2023,Computer Hardware Purchases,Service Delivery,Dell Corporation Ltd,7402897216,"1,000.00",Dell Optical Mouse-MS116 - Black ,RG12 1LF
Health Informatics,Service Delivery,26/04/2023,Computer Hardware Purchases,Service Delivery,Dell Corporation Ltd,7402897216,"8,000.00",UK/Irish (QWERTY) Dell KB-813 Smartcard Reader USB Keyboard black,RG12 1LF
Health Informatics,Service Delivery,26/04/2023,Computer Hardware Purchases,Service Delivery,Dell Corporation Ltd,7402897216,"14,650.00",Wyse 5070 thin client  CTO,RG12 1LF
Health Informatics,Service Delivery,26/04/2023,Computer Hardware Purchases,Service Delivery,Dell Corporation Ltd,7402897216,"39,800.00","Dell 27 Monitor - P2722H - 68.6cm (27"") ",RG12 1LF
Balance Sheet,Fixed Assets,06/04/2023,Additions - Assets Under Construction,Capital (His),Dell Corporation Ltd,7402897521,"29,994.00 ",Dell PowerEdge R450 Server,RG12 1LF
Balance Sheet,Fixed Assets,06/04/2023,Additions - Assets Under Construction,Capital (His),Dell Corporation Ltd,7402897522,"29,994.00 ",Dell PowerEdge R450 Server,RG12 1LF
Corporate Services,Corporate Services,26/04/2023,Books Journals and Subscriptions,Corporate Services,Foundation Trust Network,0000008036,"30,646.00 ",NHS Providers Membership FeeBand 5: £400-£500 millionMembership period 01.04.23-31.03.24,SW1H 9JJ
Balance Sheet,Fixed Assets,12/04/2023,Additions - Assets Under Construction,Capital (Estates),Fresenius Kabi Ltd,914692632,"227,700.00 ",ITEM - Z019730 - Agilia VP MC WiFi infusion pump,WA7 1NT
Health Informatics,Corporate And Operations,26/04/2023,Training Expenses,Business Support,Global Knowledge Network Training Ltd,357028,"60,000.00 ",12 Month Training PassCan be used on all training areas such as Microsoft  Cisco  Citrix  TOGAF  ISACA  RedHat  VMware  as well as other third party courses.   ,RG41 2GY
Central & Technical,Tech Accounting,01/05/2023,B5 Agency Nursing,Tech Accounting,Icare24 Ltd,INV-1230446A,"28,708.91 ",B5 Agency Nursing,B16 8QG
Central & Technical,Tech Accounting,01/05/2023,B5 Agency Nursing,Tech Accounting,Icare24 Ltd,INV-57364A,"29,546.00 ",B5 Agency Nursing,B16 8QG
Central & Technical,Tech Accounting,01/05/2023,B5 Agency Nursing,Tech Accounting,Icare24 Ltd,INV-58552.1A,"27,430.18 ",B5 Agency Nursing,B16 8QG
Central & Technical,Tech Accounting,01/05/2023,B5 Agency Nursing,Tech Accounting,Icare24 Ltd,INV-59668A,"28,939.89 ",B5 Agency Nursing,B16 8QG
Balance Sheet,Fixed Assets,21/04/2023,Additions - Assets Under Construction,Capital (Estates),Integrated Health Projects,23030005,"545,466.71 ",Emergency Department DEVELOPMENT - SUPPLY AND INSTALLATION OF FIRE SUPPRESSION AS PER YOUR QUOTE,WD24 4WW
Balance Sheet,Fixed Assets,21/04/2023,Additions - Assets Under Construction,CAPITAL (Reconfig HRI),Integrated Health Projects,23030008,"2,343,851.18 ",STAGE 3 & 4 GMP SUBMISSION FOR THE DELIVERY OF A NEW ACCIDENT AND EMERGENCY BUILD AT THE HUDDERSFIELD ROYAL INFIRMARY ,WD24 4WW
Balance Sheet,L2 Current Assets,21/04/2023,Finished Processed Goods,Stock & Work In Progress,Janssen-Cilag Ltd,930910853,"35,769.60 ",Pharmaceutical Purchase,HP12 4EG
Balance Sheet,L2 Current Assets,21/04/2023,Finished Processed Goods,Stock & Work In Progress,Janssen-Cilag Ltd,930911124,"59,616.00 ",Pharmaceutical Purchase,HP12 4EG
Balance Sheet,Fixed Assets,26/04/2023,Additions - Assets Under Construction,Capital (Estates),Kaydee Sayfa Ltd,INV0036821,"174,048.19 ",HRI - SUPPLY AND INSTALLATION OF EDGE PROTECTION AS PER TENDER REF SUPPLY AND FIT ROOF RAILINGS,LE12 9NH
Central & Technical,Tech Accounting,21/04/2023,CCG Income,Tech Accounting,Kirklees Council,8607758508,"3,000.00",Point of Access  advice and sign posting for care needs in the independent sector £3 000,HD1 2NF
Central & Technical,Tech Accounting,21/04/2023,CCG Income,Tech Accounting,Kirklees Council,8607758508,"20,240.00",UECB WINTER MONIES ALLOCATION - KIRKLEES COUNCIL - TRIAL OD SIM CARD ENABLED TECH TO SUPPORT HOME FIRST INC. KEY SAFES,HD1 2NF
Central & Technical,Tech Accounting,21/04/2023,CCG Income,Tech Accounting,Kirklees Council,8607758508,"35,000.00",UECB WINTER MONIES ALLOCATION - KIRKLEES COUNCIL - TWO BED CO-ORDINATORS FOR SIX MONTHS. ,HD1 2NF
Corporate Services,Finance,14/04/2023,Audit Fees : Statutory,Finance,KPMG LLP,5502593694,"90,000.00 ",TRUST FINANCIAL STATEMENTS AUDIT 22/23 - 2ND YEAR OF CONTRACT,WD17 1DE
Families & Specialist Services,Pharmacy,14/04/2023,Healthcare From Commercial Sector,Pharm Gen,L Rowland & Company (Retail) Ltd,1800000254,"95,044.66",Rowlands Outpatient Pharmacy contract DISPENSING FEE,WA7 3DJ
Families & Specialist Services,Pharmacy,14/04/2023,Healthcare From Commercial Sector,Pharm Gen,L Rowland & Company (Retail) Ltd,1800000254,"771,726.61 ",Rowlands Outpatient Pharmacy Contract. medicines costs,WA7 3DJ
Balance Sheet,Fixed Assets,06/04/2023,Additions - Assets Under Construction,Capital (Surgical),Lynton Lasers Ltd,SIN055731,"90,000.00 ",SIRIUS Th:Fibre Laser as per quotation ,CW4 8AF
Families & Specialist Services,Radiology,13/04/2023,Med Surg Eqpt Hire,Ct,Medispace B.V.,20230221,"30,025.92 ",Rental of a CM050 CT scan box with Canon Prime 160 slice CT scanner plus 2 radiographers to run the service 8am-20.00pm 7 days per week,2712 PJ  The Netherlands
Recharges,Recharges,14/04/2023,Healthcare From NHS Trusts,Recharges,Mid Yorkshire Hospitals NHS Trust,1600022943,"52,918.00 ",Various services provided by agreement as per West Yorkshire Association of Acute Trusts agreed methodology,WF1 4DG
Balance Sheet,Fixed Assets,26/04/2023,Additions - Assets Under Construction,Capital (Pmu),"Minebea Intec UK Limited	",8100011928,"37,337.66 ","Weighing equipment including commissioning and delivery IFS4 flatbed scale ISEDE - Industry Supreme weighing
platform Maxxis 5 Process Controller",B37 7YE
Families & Specialist Services,Pathology,20/04/2023,Blood Products,Blood Sciences,NHS Blood And Transplant,7012889,"85,109.73 ",MONTHLY CONTRACT CHARGE BLOOD & COMPONENTS,LS15 7TW
Families & Specialist Services,Pathology,20/04/2023,Blood Products,Blood Sciences,NHS Blood And Transplant,7012890,"32,812.05 ",MONTHLY CONTRACT CHARGE BLOOD & COMPONENTS,LS15 7TW
Corporate Services,Quality,17/04/2023,Clinical Negligence,Quality,NHS Resolution,SICX411687,"843,190.75 ",Clinical Negligence provision,SW1W 9SZ
Families & Specialist Services,Womens,17/04/2023,Clinical Negligence,Womens Management,NHS Resolution,SICX411687,"904,894.45 ",Clinical Negligence provision,SW1W 9SZ
Corporate Services,Quality,17/04/2023,Insurance Costs,Quality,NHS Resolution,SICX411687,"20,948.60 ",Clinical Negligence provision,SW1W 9SZ
CHS Balance Sheet,Current Liabilities,06/04/2023,Non- NHS  Trade Creditors < One Year,Other Creditors,NHS Supply Chain,1123285492,"111,860.66 ",Goods delivered week ending 10-Mar-2023,DE55 4QJ
CHS Balance Sheet,Current Liabilities,06/04/2023,Non- NHS  Trade Creditors < One Year,Other Creditors,NHS Supply Chain,1123289993,"128,970.00 ",Goods delivered week ending 10-Mar-2023,DE55 4QJ
CHS Balance Sheet,Current Liabilities,14/04/2023,Non- NHS  Trade Creditors < One Year,Other Creditors,NHS Supply Chain,1123292752,"131,592.77 ",Goods delivered week ending 17-Mar-2023,DE55 4QJ
CHS Balance Sheet,Current Liabilities,14/04/2023,Non- NHS  Trade Creditors < One Year,Other Creditors,NHS Supply Chain,1123297427,"203,069.23 ",Goods delivered week ending 17-Mar-2023,DE55 4QJ
CHS Balance Sheet,Current Liabilities,21/04/2023,Non- NHS  Trade Creditors < One Year,Other Creditors,NHS Supply Chain,1123299824,"123,327.74 ",Goods delivered week ending 24-Mar-2023,DE55 4QJ
CHS Balance Sheet,Current Liabilities,21/04/2023,Non- NHS  Trade Creditors < One Year,Other Creditors,NHS Supply Chain,1123303763,"110,814.69 ",Goods delivered week ending 24-Mar-2023,DE55 4QJ
CHS Balance Sheet,Current Liabilities,26/04/2023,Non- NHS  Trade Creditors < One Year,Other Creditors,NHS Supply Chain,1123307409,"158,363.46 ",Goods delivered week ending 31-Mar-2023,DE55 4QJ
Balance Sheet,Fixed Assets,12/04/2023,Additions - Assets Under Construction,Capital (Medicine & Elderly),NHS Supply Chain,9523001761,"65,538.89 ",HRI Acute Floor x 2 ultrasound machines Venue Go NHSSC_AM_1517101022,DE55 4QJ
Balance Sheet,Fixed Assets,19/04/2023,Additions - Assets Under Construction,Capital (Fss),NHS Supply Chain,9523002182,"97,546.80 ",Mobile C-Arm Image Intensifier,DE55 4QJ
Balance Sheet,Fixed Assets,26/04/2023,Additions - Assets Under Construction,Capital (Surgical),NHS Supply Chain,9523002183,"97,546.80 ",Mobile C-Arm Image Intensifier,DE55 4QJ
Balance Sheet,L2 Current Assets,14/04/2023,Finished Processed Goods,Stock & Work In Progress,Novartis Pharmaceuticals Uk Ltd,92748719,"42,201.60 ",Pharmaceutical Purchase,W12 7FQ
Balance Sheet,Fixed Assets,26/04/2023,Additions - Assets Under Construction,Capital (Surgical),Novus Med Ltd,INV-3964,"11,772.00 ",Ureterorenoscope 5 degree 6/7.5FR WL 430mm semi-rigid  with Lateral Ocular Lens  Working Channel 1x4 (2.2.2)Fr  Atraumatic Distal Tip  TL 563mm  Fiber Image Carrier8702534,HX3 8SX
Balance Sheet,Fixed Assets,26/04/2023,Additions - Assets Under Construction,Capital (Surgical),Novus Med Ltd,INV-3964,"11,772.00 ",Ureterorenoscope 5 deg 4.5/6.5FR WL 430mm Semi-Rig  with Lat Ocu Lens  Work Chan 3Fr  Atrau Dist Tip  TL 555mm  Fiber Ima Carr Semi-Rig  with Lat Ocu Lens  Work Chan 3FR  Atrau Dist Tip  TL 555mm  Fiber Ima Carr8701.534,HX3 8SX
Balance Sheet,Fixed Assets,21/04/2023,Additions - Assets Under Construction,Capital (Surgical),Okb Medical Ltd,OKB-CHS-230206,"99,930.00 ",SX P ES Simbionix ENDO Suite Mentor Simulation System  ML SW Simbionix MentorLearn  SX CM Cyberscopy Mod  SX ULM Upper&Lower GI Mod  SX EBM Gastric Emergency Bleeding Mod-Basic  SX FSM Flexible Sigmoidoscopy Mod,PO19 8FX
Balance Sheet,Fixed Assets,21/04/2023,Additions - Assets Under Construction,Capital (Surgical),Olympus Keymed,CD2835193,"3,745.56",Lot 22 rigid K23009415 WM-NP3 lap workst-draw  K10035789 MAJ-2216 LCD mon arm 6.5-12kg  K10029987 WM-NP3 mob workst-UK  K10036681 MAJ-1665 cam HD hol P2/3 C3/4  K10021043 MAJ-1653 Co2 cy hol-dou  K10030178 MAJ-2165 draw-un,SS2 5QH
Balance Sheet,Fixed Assets,21/04/2023,Additions - Assets Under Construction,Capital (Surgical),Olympus Keymed,CD2835193,"21,211.12",Lot 22 RigidN5427050 Visera Elite II OTV-S200 Processor,SS2 5QH
Balance Sheet,Fixed Assets,21/04/2023,Additions - Assets Under Construction,Capital (Surgical),Olympus Keymed,CD2835193,"11,680.62",Lot 22 RigidN5427050 CLV-S200-IR Visera Elite II Xenon Light Source,SS2 5QH
Balance Sheet,Fixed Assets,21/04/2023,Additions - Assets Under Construction,Capital (Surgical),Olympus Keymed,CD2835193,"13,487.74",Lot 22 RigidN5766550 CH-S200-XZ-EA HD 3CMOS Autoclavable Camera Head,SS2 5QH
Balance Sheet,Fixed Assets,21/04/2023,Additions - Assets Under Construction,Capital (Surgical),Olympus Keymed,CD2835193,79.38,Lot 22 RigidK10036681 MAJ-1665 Camera HD Holder P2/3 C3/4,SS2 5QH
Balance Sheet,Fixed Assets,21/04/2023,Additions - Assets Under Construction,Capital (Surgical),Olympus Keymed,CD2835193,"12,777.24",Lot 22 RigidN6018160 OEV-321UH 32 inch 4K UHD LCD Monitor,SS2 5QH
Balance Sheet,Fixed Assets,21/04/2023,Additions - Assets Under Construction,Capital (Surgical),Olympus Keymed,CD2835193,"1,862.00",Lot 22 RigidK23006488 Sony Up-DR80MD A4 Printer with PackK10015705 Sony Up-DR80MD A4 Colour PrinterK10015706 Sony UPC-R80MD A4 Colour Print PackQuote: A336058-2,SS2 5QH
Balance Sheet,Fixed Assets,21/04/2023,Additions - Assets Under Construction,Capital (Surgical),Olympus Keymed,CD2835193,"12,784.10",Lot 22 RigidK23009397 Single Channel NCare System  K10029375 Cable Uni IEC 320 1.5M  K10036642 Mon cov for NCare 15in touchscr  E0420542 NCare 15.6in touchscr mon  U9000407 NCare Rec Sing Dir SDI EU  K10030210 MAJ-2167 Nurse's control arm,SS2 5QH
Balance Sheet,Fixed Assets,21/04/2023,Additions - Assets Under Construction,Capital (Surgical),Olympus Keymed,CD2835838,"32,490.00 ",ESG-410 Electrosurgical GeneratorWA91307W,SS2 5QH
Balance Sheet,Fixed Assets,26/04/2023,Additions - Assets Under Construction,Capital (Surgical),Olympus Keymed,CD2836404,"90,817.20 ",PROJECT 32MULTI-PURCHASE OFFER3 x N6006050 - CYF-VH Cysto-Nephro Videoscope 1 x N6149350 - MAJ-891 Forceps/Irrigation Plug,SS2 5QH
Balance Sheet,Fixed Assets,26/04/2023,Additions - Assets Under Construction,Capital (Surgical),Olympus Keymed,CD2837053,"46,687.20 ",LOT 22 RIGID TURIS X 3 Plasma systems,SS2 5QH
Balance Sheet,Fixed Assets,26/04/2023,Additions - Assets Under Construction,Capital (Medicine & Elderly),Optima Medical Ltd,26891,"31,188.00 ",Trex HD Ambulatory Headbox Video system - 96 hours.,GU2 7AA
Corporate Services,Service Performance,19/04/2023,Insurance Costs,Properties,Pennine Property Partnership Llp,LINV55747,"54,195.17 ",Acre Mills Outpatient Department Building Insurance,WA4 6HL
Corporate Services,Service Performance,26/04/2023,Contract : Other External,Properties,Pennine Property Partnership Llp,SINV3339,"48,516.60 ",Acre Mills Outpatient Department Service Charge Recharge - March 2023,WA4 6HL
Health Informatics,Service Delivery,26/04/2023,Computer Maintenance,Service Delivery,Phoenix Software Ltd,OP/I964868,"32,698.99 ",Post Standard Support and 4hr On-Site Service After Problem Diagnosis Variable 2 Year - ,YO42 1NS
Pmu,Pmu,26/04/2023,Contract : Other External,Pmu,Pilz Ltd,HPS.2023.03,"53,010.46 ",POV03W: 50% share of gross margin Povidone/iodine product (March receipts),S75 3SP
Surgery & Anaesthetics,Surgical Divisional Support,12/04/2023,Healthcare From Commercial Sector,Support Services,Pioneer Healthcare Ltd,740,"26,224.00 ",Insourcing Services - February 2023 Neurology ,S10 5UB
Surgery & Anaesthetics,Surgical Divisional Support,19/04/2023,Healthcare From Commercial Sector,Support Services,Pioneer Healthcare Ltd,802,"35,534.00 ",Insourcing Services March 2023 ENT PH book 18th  19th Ophthalmology GA 18th  19th ,S10 5UB
Corporate Services,Finance,26/04/2023,External Consultancy Fees,Finance,Pricewaterhousecoopers Llp,1355950065,"81,252.00 ",Project Echo and the Trust's Reconfiguration Outline Business Case,SE1 2RD
Balance Sheet,Fixed Assets,21/04/2023,Capital Charge Interest General Fund,Capital (Fss),Rdp Group Uk Ltd,028345,"40,748.40 ",NOVA-T5C1-111U – NOVA Series powered PC medical carts  2x 256kw/h SensaLiFe batteries  electronic height adjust  screenpost with universal VESA mount  twin drawers with lock. 7 years onsite warranty. ,RH15 9TN
Medical Division,Emergency Medicine,14/04/2023,B5 Agency Nursing,A&E Nursing,Red Group Personnel Ltd,190323CH,"3,533.01 ",B5 Agency Nursing,HA3 5AB
Medical Division,Medical Specialities,14/04/2023,B5 Agency Nursing,Gastroenterology,Red Group Personnel Ltd,190323CH,635.35 ,B5 Agency Nursing,HA3 5AB
Medical Division,Acute Medical,14/04/2023,B5 Agency Nursing,General Medicine,Red Group Personnel Ltd,190323CH,"4,482.53 ",B5 Agency Nursing,HA3 5AB
Medical Division,Acute Medical,14/04/2023,B5 Agency Nursing,Geriatric Medicine,Red Group Personnel Ltd,190323CH,"1,507.91 ",B5 Agency Nursing,HA3 5AB
Medical Division,Integrated Medical Specialities,14/04/2023,B5 Agency Nursing,Ims Stroke / Rehabilitation,Red Group Personnel Ltd,190323CH,"2,488.32 ",B5 Agency Nursing,HA3 5AB
Families & Specialist Services,Childrens,14/04/2023,B5 Agency Nursing,Inpatients Paediatrics,Red Group Personnel Ltd,190323CH,672.98 ,B5 Agency Nursing,HA3 5AB
Surgery & Anaesthetics,Operating Services,14/04/2023,B5 Agency Nursing,Operating Services,Red Group Personnel Ltd,190323CH,"2,933.51 ",B5 Agency Nursing,HA3 5AB
Medical Division,Medical Specialities,14/04/2023,B5 Agency Nursing,Respiratory,Red Group Personnel Ltd,190323CH,"4,747.22 ",B5 Agency Nursing,HA3 5AB
Surgery & Anaesthetics,Orthopaedics,14/04/2023,B5 Agency Nursing,Trauma & Orthopaedics,Red Group Personnel Ltd,190323CH,641.82 ,B5 Agency Nursing,HA3 5AB
Central & Technical,Tech Accounting,21/04/2023,B5 Agency Nursing,Tech Accounting,Red Group Personnel Ltd,260323CH,"29,573.78 ",B5 Agency Nursing,HA3 5AB
Balance Sheet,L2 Current Assets,26/04/2023,Finished Processed Goods,Stock & Work In Progress,Roche Products Ltd,1322274446,"34,146.00 ",Pharmaceutical Purchase,AL7 1TW
Balance Sheet,L2 Current Assets,26/04/2023,Finished Processed Goods,Stock & Work In Progress,Roche Products Ltd,1322278448,"26,955.19 ",Pharmaceutical Purchase,AL7 1TW
CHS Estates,L2 Estates,12/04/2023,Gas,Estates Operations,SEFE Energy Limited,INV02820819,"185,161.17 ",Mains gas HRI,M15 4RP
Balance Sheet,Fixed Assets,26/04/2023,Additions - Assets Under Construction,Capital (Corporate),Select Medical Ltd,153314,"86,040.00 ",Product Code: SM013A. Product Description: Pure Air 8 Acute Mattress Systems.,BB1 5NA
Health Informatics,Corporate And Operations,26/04/2023,Computer Software / License  Fees,Professional Services,Softcat Plc,INV02554899,"960,000.00 ",Darktrace Cyber Al Platform for 5 years Commencing March 31st 2020  as per quote att. Limited to 16 000 IPs1 x Large appliance1 x Extra Large appliance1 x 0365 connector,SL7 1TB
Corporate Services,Workforce And Organisational Development,21/04/2023,Agency Admin & Clerical (Non Medical Non Clinical),Personnel,Spectrum Community Health CIC,SINV-5967,"31,328.90 ",Seconded Employee from Spectrum Community Health CIC - funded centrally to be refunded to the Engagement Team budget. Sept 2022-Feb 2023,WF1 5RH
Community Division,Community Therapies,26/04/2023,Patients Appliances : Purchase,Patient Appliances,Taycare Medical Ltd,23747,"27,703.50 ",supply of specialist orthotic products,LS12 6LL
Community Division,Community Therapies,26/04/2023,Patients Appliances : Purchase,Patient Appliances,Taycare Medical Ltd,23748,"34,565.48 ",supply of specialist orthotic products,LS12 6LL
Families & Specialist Services,Radiology,19/04/2023,Contractual Clinical Services,Rad General,Telemedicine Clinic Ltd,20230065,"137,183.65 ",Outsourced teleradiology reporting,B3 2RT
Families & Specialist Services,Radiology,26/04/2023,Contractual Clinical Services,Rad General,Telemedicine Clinic Ltd,20230120,"136,470.74 ",Outsourced teleradiology reporting,B3 2RT
Recharges,Recharges,05/04/2023,Healthcare From NHS Trusts,Recharges,The Leeds Teaching Hospitals NHS Trust,1410204541,"252,771.83 ",Various services provided by agreement as per West Yorkshire Association of Acute Trusts agreed methodology,LS9 7TF
CHS Facilities,L2 Facilities,26/04/2023,Contract : Premises Security,Security,The Leeds Teaching Hospitals NHS Trust,1410202364,"36,161.22 ",Security Contract,LS9 7TF
CHS Facilities,L2 Facilities,21/04/2023,Contract : Premises Security,Security,The Leeds Teaching Hospitals NHS Trust,1410202917,"36,161.22 ",Security Contract,LS9 7TF
CHS Facilities,L2 Facilities,26/04/2023,Contract : Premises Security,Security,The Leeds Teaching Hospitals NHS Trust,1410204591,"36,161.22 ",Security Contract,LS9 7TF
CHS Estates,L2 Estates,06/04/2023,Gas,Estates Operations,TotalEnergies Gas & Power Ltd,294451020/23,"669,462.07 ",Mains Gas CRH,RH1 1RX
CHS Estates,L2 Estates,14/04/2023,Gas,Estates Operations,TotalEnergies Gas & Power Ltd,295779511/23,"94,072.98 ",Mains Gas CRH,RH1 1RX
Balance Sheet,Fixed Assets,26/04/2023,Additions - Assets Under Construction,Capital (Estates),Triad Controls Ltd,2433,"70,128.00 ",HPS - BMS UPGRADE AS PER YOUR QUOTE,LE67 8FB
Balance Sheet,Fixed Assets,26/04/2023,Additions - Assets Under Construction,Capital (His),Trustco Plc,142590,"50,000.40 ",Professional Services to develop automation processes that support ‘Waiting List Validation’ ,BN3 4QT
Balance Sheet,L2 Current Assets,26/04/2023,Other Debtors < One Year,Other Debtors,Tuskerdirect Ltd,74019,"140,831.19 ",Salary Sacrifice cars,WD18 8YF
CHS Balance Sheet,Fixed Assets,21/04/2023,Additions - Assets Under Construction,Tangible,Ultramedic Ltd,55629,"31,951.30 ",ProSim 8 Vital Signs Simulator ProSim SPOTLIGHT FUNCTIONAL TESTER,L7 9PF
Health Informatics,Corporate And Operations,26/04/2023,Data Lines,It Support,Virgin Media Business Ltd,926098-167,"341,531.08 ",Virgin Media Business.  HSCN Lines,BD4 8PW
Balance Sheet,Fixed Assets,06/04/2023,Additions - Assets Under Construction,Capital (Medicine & Elderly),Vyaire UK 236 Ltd,31350562RI,"89,540.38 ",Vyntus™ ONE Pulmonary Function Systems,RG24 8NA
Corporate Services,Quality,12/04/2023,Other General Supplies and Services,Quality,Wolters Kluwer Health/UpToDate Inc,8468610,"39,580.32 ",UpToDate point of care database February 2023-January 2024 subscription,MA 02241-2094
Central & Technical,Tech Accounting,12/04/2023,B5 Agency Nursing,Tech Accounting,Your Nurse Ltd,EHCX45,"54,802.40 ",B5 Agency Nursing,EC3V 0EH
Central & Technical,Tech Accounting,19/04/2023,B5 Agency Nursing,Tech Accounting,Your Nurse Ltd,EHCX46,"43,909.00 ",B5 Agency Nursing,EC3V 0EH
Central & Technical,Tech Accounting,26/04/2023,B5 Agency Nursing,Tech Accounting,Your Nurse Ltd,EHCX47,"49,303.60 ",B5 Agency Nursing,E14 5RE
Medical Division,Emergency Medicine,26/04/2023,B5 Agency Nursing,A&E Nursing,Your Nurse Ltd,EHCX48,"2,059.99 ",B5 Agency Nursing,E14 5RE
Medical Division,Acute Medical,26/04/2023,B5 Agency Nursing,General Medicine,Your Nurse Ltd,EHCX48,"2,092.51 ",B5 Agency Nursing,E14 5RE
Surgery & Anaesthetics,General Surgery,26/04/2023,B5 Agency Nursing,General Surgery,Your Nurse Ltd,EHCX48,"1,518.00 ",B5 Agency Nursing,E14 5RE
Medical Division,Acute Medical,26/04/2023,B5 Agency Nursing,Geriatric Medicine,Your Nurse Ltd,EHCX48,"2,452.50 ",B5 Agency Nursing,E14 5RE
Medical Division,Integrated Medical Specialities,26/04/2023,B5 Agency Nursing,Ims Stroke / Rehabilitation,Your Nurse Ltd,EHCX48,660.00 ,B5 Agency Nursing,E14 5RE
Central & Technical,Tech Accounting,26/04/2023,B5 Agency Nursing,Tech Accounting,Your Nurse Ltd,EHCX48,"23,145.84 ",B5 Agency Nursing,E14 5RE
Surgery & Anaesthetics,Orthopaedics,26/04/2023,B5 Agency Nursing,Trauma & Orthopaedics,Your Nurse Ltd,EHCX48,690.00 ,B5 Agency Nursing,E14 5RE
Central & Technical,Tech Accounting,12/04/2023,B5 Agency Nursing,Tech Accounting,Your Nurse Ltd,YNLX67,"143,631.56 ",B5 Agency Nursing,EC3V 0EH
Central & Technical,Tech Accounting,14/04/2023,B5 Agency Nursing,Tech Accounting,Your Nurse Ltd,YNLX68,"125,138.71 ",B5 Agency Nursing,EC3V 0EH
Central & Technical,Tech Accounting,26/04/2023,B5 Agency Nursing,Tech Accounting,Your Nurse Ltd,YNLX69,"108,406.31 ",B5 Agency Nursing,E14 5RE
Central & Technical,Tech Accounting,26/04/2023,B5 Agency Nursing,Tech Accounting,Your Nurse Ltd,YNLX70,"92,843.45 ",B5 Agency Nursing,E14 5RE
Medical Division,Emergency Medicine,26/04/2023,B5 Agency Nursing,A&E Nursing,Your Nurse Ltd,YNLX71,"2,350.48 ",B5 Agency Nursing,E14 5RE
Medical Division,Medical Specialities,26/04/2023,B5 Agency Nursing,Cardiology,Your Nurse Ltd,YNLX71,640.93 ,B5 Agency Nursing,E14 5RE
Corporate Services,RAFT,26/04/2023,B5 Agency Nursing,Central Operations Team CORP,Your Nurse Ltd,YNLX71,"1,293.00 ",B5 Agency Nursing,E14 5RE
Surgery & Anaesthetics,Critical Care,26/04/2023,B5 Agency Nursing,Critical Care,Your Nurse Ltd,YNLX71,"1,482.83 ",B5 Agency Nursing,E14 5RE
Surgery & Anaesthetics,Head & Neck,26/04/2023,B5 Agency Nursing,Ent,Your Nurse Ltd,YNLX71,447.75 ,B5 Agency Nursing,E14 5RE
Medical Division,Medical Specialities,26/04/2023,B5 Agency Nursing,Gastroenterology,Your Nurse Ltd,YNLX71,"1,281.86 ",B5 Agency Nursing,E14 5RE
Medical Division,Acute Medical,26/04/2023,B5 Agency Nursing,General Medicine,Your Nurse Ltd,YNLX71,"5,204.44 ",B5 Agency Nursing,E14 5RE
Surgery & Anaesthetics,General Surgery,26/04/2023,B5 Agency Nursing,General Surgery,Your Nurse Ltd,YNLX71,614.23 ,B5 Agency Nursing,E14 5RE
Medical Division,Acute Medical,26/04/2023,B5 Agency Nursing,Geriatric Medicine,Your Nurse Ltd,YNLX71,"3,905.70 ",B5 Agency Nursing,E14 5RE
Families & Specialist Services,Womens,26/04/2023,B5 Agency Nursing,Gynaecology,Your Nurse Ltd,YNLX71,733.50 ,B5 Agency Nursing,E14 5RE
Medical Division,Integrated Medical Specialities,26/04/2023,B5 Agency Nursing,Ims Stroke / Rehabilitation,Your Nurse Ltd,YNLX71,"4,747.18 ",B5 Agency Nursing,E14 5RE
Families & Specialist Services,Childrens,26/04/2023,B5 Agency Nursing,Inpatients Paediatrics,Your Nurse Ltd,YNLX71,770.27 ,B5 Agency Nursing,E14 5RE
Surgery & Anaesthetics,Operating Services,26/04/2023,B5 Agency Nursing,Operating Services,Your Nurse Ltd,YNLX71,803.83 ,B5 Agency Nursing,E14 5RE
Medical Division,Medical Specialities,26/04/2023,B5 Agency Nursing,Respiratory,Your Nurse Ltd,YNLX71,"4,095.57 ",B5 Agency Nursing,E14 5RE
Central & Technical,Tech Accounting,26/04/2023,B5 Agency Nursing,Tech Accounting,Your Nurse Ltd,YNLX71,"66,414.41 ",B5 Agency Nursing,E14 5RE
Surgery & Anaesthetics,Orthopaedics,26/04/2023,B5 Agency Nursing,Trauma & Orthopaedics,Your Nurse Ltd,YNLX71,447.75 ,B5 Agency Nursing,E14 5RE
Balance Sheet,Fixed Assets,26/04/2023,Additions - Assets Under Construction,Capital (Medicine & Elderly),Zoll Medical U K Ltd,90001333,"31,800.00 ",Device Dashboard Subscription 7 Year R and XSeries,WA7 1SY_01
Balance Sheet,Fixed Assets,26/04/2023,Additions - Assets Under Construction,Capital (Medicine & Elderly),Zoll Medical U K Ltd,90001333,"23,640.00 ",CaseReview Subscription 7 Year R Series,WA7 1SY_01
Balance Sheet,Fixed Assets,26/04/2023,Additions - Assets Under Construction,Capital (Medicine & Elderly),Zoll Medical U K Ltd,90001333,"15,960.00 ",Device Dashboard Subscription 7 Year AED 3,WA7 1SY_01
Balance Sheet,Fixed Assets,26/04/2023,Additions - Assets Under Construction,Capital (Medicine & Elderly),Zoll Medical U K Ltd,90001333,"47,280.00 ",CaseReview Subscription 7 Year AED 3,WA7 1SY_01
Balance Sheet,Fixed Assets,26/04/2023,Additions - Assets Under Construction,Capital (Medicine & Elderly),Zoll Medical U K Ltd,90001333,"1,890.00 ",CaseReview Deployment,WA7 1SY_01
Balance Sheet,Fixed Assets,26/04/2023,Additions - Assets Under Construction,Capital (Medicine & Elderly),Zoll Medical U K Ltd,90001333,"1,890.00 ",Device Dashboard Deployment,WA7 1SY_01
